fUSD/lending_fUSD_20240116
["ID","MTS","AMOUNT","RATE_DAILY","PERIOD"]
[311783654,1705387866381,-482.65372714,0.00022966,2]
[311783655,1705387866390,-500.0,0.00022966,2]
[311783656,1705387866399,-500.0,0.00022966,2]
[311783657,1705387866410,-508.98,0.00022966,2]
[311783658,1705387866419,-500.0,0.00022966,2]
[311783659,1705387866430,-500.0,0.00022966,2]
[311783660,1705387866439,-500.0,0.00022966,2]
[311783661,1705387866449,-1898.03,0.00022966,2]
[311783662,1705387866458,-500.0,0.00022966,2]
[311783663,1705387866467,-671.01,0.00022966,2]
[311783664,1705387866477,-500.0,0.00022966,2]
[311783665,1705387866487,-500.0,0.00022966,2]
[311783666,1705387866496,-500.0,0.00022966,2]
[311783667,1705387866506,-500.0,0.00022966,2]
[311783668,1705387866515,-500.0,0.00022966,2]
[311783669,1705387866524,-1159.9,0.00022966,2]
[311783670,1705387866535,-500.0,0.00022966,2]
[311783671,1705387866544,-500.0,0.00022966,2]
[311783672,1705387866554,-500.0,0.00022966,2]
[311783673,1705387866563,-604.63,0.00022966,2]
[311783674,1705387866573,-534.28,0.00022966,2]
[311783675,1705387866582,-500.0,0.00022966,2]
[311783676,1705387866591,-657.11,0.00022966,2]
[311783677,1705387866602,-500.0,0.00022966,2]
[311783678,1705387866611,-500.0,0.00022966,2]
[311783679,1705387866621,-500.0,0.00022966,2]
[311783680,1705387866632,-500.0,0.00022966,2]
[311783681,1705387866642,-500.0,0.00022966,2]
[311783682,1705387866652,-500.0,0.00022966,2]
[311783683,1705387866666,-500.0,0.00022966,2]
[311783684,1705387866677,-683.28,0.00022966,2]
[311783685,1705387866687,-500.0,0.00022966,2]
[311783686,1705387866698,-564.65,0.00022966,2]
[311783687,1705387866708,-973.15,0.00022966,2]
[311783688,1705387866718,-1112.39,0.00022966,2]
[311783689,1705387866729,-1164.97,0.00022966,2]
[311783690,1705387866740,-500.0,0.00022966,2]
[311783691,1705387866750,-500.0,0.00022966,2]
[311783692,1705387866761,-528.57,0.00022966,2]
[311783693,1705387866771,-500.0,0.00022966,2]
[311783694,1705387866782,-500.0,0.00022966,2]
[311783695,1705387866793,-500.0,0.00022966,2]
[311783696,1705387866805,-500.0,0.00022966,2]
[311783697,1705387866815,-500.0,0.00022966,2]
[311783698,1705387866826,-816.22,0.00022966,2]
[311783699,1705387866840,-881.48,0.00022966,2]
[311783700,1705387866852,-500.0,0.00022966,2]
[311783701,1705387866866,-4182.44,0.00022966,2]
[311783702,1705387866877,-557.14,0.00022966,2]
[311783703,1705387866888,-500.0,0.00022966,2]
[311783704,1705387866913,-2072.98,0.00022966,2]
[311783705,1705387866930,-996.45,0.00022966,2]
[311783706,1705387866947,-500.0,0.00022966,2]
[311783707,1705387866970,-6403.61,0.00022966,2]
[311783708,1705387866981,-500.0,0.00022966,2]
[311783709,1705387866992,-640.13,0.00022966,2]
[311783710,1705387867002,-1853.66,0.00022966,2]
[311783711,1705387867012,-2100.19,0.00022966,2]
[311783712,1705387867022,-500.0,0.00022966,2]
[311783713,1705387867044,-828.5,0.00022966,2]
[311783714,1705387867055,-500.0,0.00022966,2]
[311783715,1705387867068,-2820.94,0.00022966,2]
[311783716,1705387867093,-500.0,0.00022966,2]
[311783717,1705387867109,-500.0,0.00022966,2]
[311783718,1705387867123,-2810.06,0.00022966,2]
[311783719,1705387867138,-573.08,0.00022966,2]
[311783720,1705387867148,-560.94,0.00022966,2]
[311783721,1705387867158,-2149.3,0.00022966,2]
[311783722,1705387867176,-2783.63,0.00022966,2]
[311783723,1705387867186,-611.25,0.00022966,2]
[311783724,1705387867196,-2604.05,0.00022966,2]
[311783725,1705387867221,-636.87,0.00022966,2]
[311783726,1705387867234,-642.5,0.00022966,2]
[311783727,1705387867249,-752.67,0.00022966,2]
[311783728,1705387867259,-500.0,0.00022966,2]
[311783729,1705387867270,-1215.82,0.00022966,2]
[311783730,1705387867283,-500.0,0.00022966,2]
[311783731,1705387867292,-797.01,0.00022966,2]
[311783732,1705387867306,-912.22,0.00022966,2]
[311783733,1705387867315,-500.0,0.00022966,2]
[311783734,1705387867324,-897.18,0.00022966,2]
[311783735,1705387867355,-1098.02,0.00022966,2]
[311783736,1705387867368,-500.0,0.00022966,2]
[311783737,1705387867379,-500.0,0.00022966,2]
[311783738,1705387867388,-1168.82,0.00022966,2]
[311783739,1705387867401,-637.86,0.00022966,2]
[311783740,1705387867414,-602.43,0.00022966,2]
[311783741,1705387867424,-667.71,0.00022966,2]
[311783742,1705387867433,-927.69,0.00022966,2]
[311783743,1705387867443,-3157.42,0.00022966,2]
[311783744,1705387867452,-4679.79,0.00022966,2]
[311783745,1705387867461,-3000.35,0.00022966,2]
[311783746,1705387867471,-500.0,0.00022966,2]
[311783747,1705387867480,-543.96,0.00022966,2]
[311783748,1705387867489,-685.72,0.00022966,2]
[311783749,1705387867498,-527.3,0.00022966,2]
[311783750,1705387867508,-1670.07,0.00022966,2]
[311783751,1705387867517,-561.88,0.00022966,2]
[311783752,1705387867527,-789.45,0.00022966,2]
[311783753,1705387867537,-1394.96,0.00022966,2]
[311783754,1705387867546,-500.0,0.00022966,2]
[311783755,1705387867555,-1569.53,0.00022966,2]
[311783756,1705387867564,-655.06,0.00022966,2]
[311783757,1705387867574,-830.02,0.00022966,2]
[311783758,1705387867583,-841.92,0.00022966,2]
[311783759,1705387867592,-4066.08,0.00022966,2]
[311783760,1705387867601,-1246.0,0.00022966,2]
[311783761,1705387867610,-537.86,0.00022966,2]
[311783762,1705387867620,-574.26,0.00022966,2]
[311783763,1705387867629,-647.97,0.00022966,2]
[311783764,1705387867638,-2914.24,0.00022966,2]
[311783765,1705387867648,-536.08,0.00022966,2]
[311783766,1705387867659,-760.96,0.00022966,2]
[311783767,1705387867668,-334.5259425,0.00022966,2]
[311783768,1705387867677,-500.0,0.00022966,2]
[311783769,1705387867687,-939.29,0.00022966,2]
[311783770,1705387867696,-613.98,0.00022966,2]
[311783771,1705387867706,-162.917528,0.00022966,7]
[311783772,1705387867716,-500.0,0.00022967,2]
[311783773,1705387867725,-1523.77,0.00022967,2]
[311783774,1705387867734,-716.96,0.00022967,2]
[311783775,1705387867744,-552.79,0.00022967,2]
[311783776,1705387867754,-566.67,0.00022967,2]
[311783777,1705387867763,-500.0,0.00022967,2]
[311783778,1705387867773,-519.73,0.00022967,2]
[311783779,1705387867782,-500.0,0.00022967,2]
[311783780,1705387867792,-1226.17,0.00022967,2]
[311783781,1705387867801,-500.0,0.00022967,2]
[311783782,1705387867812,-500.0,0.00022967,2]
[311783783,1705387867821,-500.0,0.00022967,2]
[311783784,1705387867830,-591.55,0.00022967,2]
[311783785,1705387867840,-589.26,0.00022967,2]
[311783786,1705387867849,-500.0,0.00022967,2]
[311783787,1705387867859,-500.0,0.00022967,2]
[311783788,1705387867868,-916.08,0.00022967,2]
[311783789,1705387867877,-966.82,0.00022967,2]
[311783790,1705387867886,-504.12,0.00022967,2]
[311783791,1705387867896,-903.62,0.00022967,2]
[311783792,1705387867905,-722.38,0.00022967,2]
[311783793,1705387867915,-746.72,0.00022967,2]
[311783794,1705387867925,-565.0,0.00022967,2]
[311783795,1705387867934,-751.26,0.00022967,2]
[311783796,1705387867944,-559.21,0.00022967,2]
[311783797,1705387867954,-500.0,0.00022967,2]
[311783798,1705387867963,-653.4,0.00022967,2]
[311783799,1705387867973,-500.0,0.00022967,2]
[311783800,1705387867983,-500.37,0.00022967,2]
[311783801,1705387867992,-865.77,0.00022967,2]
[311783802,1705387868002,-643.98,0.00022967,2]
[311783803,1705387868011,-500.0,0.00022967,2]
[311783804,1705387868020,-500.0,0.00022967,2]
[311783805,1705387868029,-576.92,0.00022967,2]
[311783806,1705387868039,-566.39,0.00022967,2]
[311783807,1705387868048,-500.0,0.00022967,2]
[311783808,1705387868057,-640.74,0.00022967,2]
[311783809,1705387868066,-500.0,0.00022967,2]
[311783810,1705387868076,-500.0,0.00022967,2]
[311783811,1705387868090,-903.97,0.00022967,2]
[311783812,1705387868100,-533.66,0.00022967,2]
[311783813,1705387868110,-503.59,0.00022967,2]
[311783814,1705387868118,-2237.3,0.00022967,2]
[311783815,1705387868128,-810.73,0.00022967,2]
[311783816,1705387868138,-1055.25,0.00022967,2]
[311783817,1705387868147,-826.73,0.00022967,2]
[311783818,1705387868156,-500.0,0.00022967,2]
[311783819,1705387868166,-619.73,0.00022967,2]
[311783820,1705387868176,-500.0,0.00022967,2]
[311783821,1705387868186,-500.0,0.00022967,2]
[311783822,1705387868195,-500.0,0.00022967,2]
[311783823,1705387868204,-526.31,0.00022967,2]
[311783824,1705387868213,-2009.51,0.00022967,2]
[311783825,1705387868223,-509.44,0.00022967,2]
[311783826,1705387868232,-734.31,0.00022967,2]
[311783827,1705387868241,-500.0,0.00022967,2]
[311783828,1705387868251,-662.27,0.00022967,2]
[311783829,1705387868260,-844.44,0.00022967,2]
[311783830,1705387868269,-500.0,0.00022967,2]
[311783831,1705387868278,-982.05,0.00022967,2]
[311783832,1705387868287,-656.14,0.00022967,2]
[311783833,1705387868297,-934.64,0.00022967,2]
[311783834,1705387868306,-787.16,0.00022967,2]
[311783835,1705387868316,-580.33,0.00022967,2]
[311783836,1705387868325,-745.75,0.00022967,2]
[311783837,1705387868334,-929.53,0.00022967,2]
[311783838,1705387868344,-1254.41,0.00022967,2]
[311783839,1705387868353,-607.5,0.00022967,2]
[311783840,1705387868363,-919.41,0.00022967,2]
[311783841,1705387868373,-929.19,0.00022967,2]
[311783842,1705387868383,-520.36,0.00022967,2]
[311783843,1705387868392,-762.4,0.00022967,2]
[311783844,1705387868402,-1439.19,0.00022967,2]
[311783845,1705387868411,-500.0,0.00022967,2]
[311783846,1705387868421,-2507.0,0.00022967,2]
[311783847,1705387868430,-688.64,0.00022967,2]
[311783848,1705387868440,-824.35,0.00022967,2]
[311783849,1705387868449,-523.25,0.00022967,2]
[311783850,1705387868458,-3076.21,0.00022967,2]
[311783851,1705387868468,-2198.91,0.00022967,2]
[311783852,1705387868477,-13903.15,0.00022967,2]
[311783853,1705387868486,-500.0,0.00022967,2]
[311783854,1705387868496,-2224.74,0.00022967,2]
[311783855,1705387868505,-536.54,0.00022967,2]
[311783856,1705387868515,-819.34,0.00022967,2]
[311783857,1705387868525,-909.1,0.00022967,2]
[311783858,1705387868535,-197.876651,0.00022967,7]
[311783859,1705387868544,-215.167336,0.00022967,2]
[311783860,1705387868554,-215.167336,0.00022967,2]
[311783861,1705387868563,-151.0,0.00022967,7]
[311783862,1705387868572,-151.0,0.00022967,7]
[311783863,1705387868582,-151.0,0.00022967,7]
[311783864,1705387868591,-151.0,0.00022967,7]
[311783865,1705387868601,-500.0,0.00022968,2]
[311783866,1705387868610,-500.0,0.00022968,2]
[311783867,1705387868620,-500.0,0.00022968,2]
[311783868,1705387868629,-500.0,0.00022968,2]
[311783869,1705387868639,-500.0,0.00022968,2]
[311783870,1705387868648,-500.0,0.00022968,2]
[311783871,1705387868658,-500.0,0.00022968,2]
[311783872,1705387868667,-500.0,0.00022968,2]
[311783873,1705387868676,-500.0,0.00022968,2]
[311783874,1705387868686,-500.0,0.00022968,2]
[311783875,1705387868695,-500.0,0.00022968,2]
[311783876,1705387868705,-500.0,0.00022968,2]
[311783877,1705387868714,-500.0,0.00022968,2]
[311783878,1705387868723,-500.0,0.00022968,2]
[311783879,1705387868732,-500.0,0.00022968,2]
[311783880,1705387868742,-530.31,0.00022968,2]
[311783881,1705387868751,-536.68,0.00022968,2]
[311783882,1705387868760,-500.0,0.00022968,2]
[311783883,1705387868769,-500.0,0.00022968,2]
[311783884,1705387868778,-574.55,0.00022968,2]
[311783885,1705387868788,-500.0,0.00022968,2]
[311783886,1705387868798,-500.0,0.00022968,2]
[311783887,1705387868807,-1385.06,0.00022968,2]
[311783888,1705387868819,-508.04,0.00022968,2]
[311783889,1705387868828,-300.0,0.00022968,2]
[311783890,1705387868837,-518.74,0.00022968,2]
[311783891,1705387868846,-500.0,0.00022968,2]
[311783892,1705387868856,-659.71,0.00022968,2]
[311783893,1705387868866,-500.0,0.00022968,2]
[311783894,1705387868876,-500.0,0.00022968,2]
[311783895,1705387868885,-519.67,0.00022968,2]
[311783896,1705387868895,-619.36,0.00022968,2]
[311783897,1705387868905,-500.0,0.00022968,2]
[311783898,1705387868915,-526.1,0.00022968,2]
[311783899,1705387868925,-700.35,0.00022968,2]
[311783900,1705387868934,-500.0,0.00022968,2]
[311783901,1705387868944,-500.0,0.00022968,2]
[311783902,1705387868953,-716.14,0.00022968,2]
[311783903,1705387868963,-500.0,0.00022968,2]
[311783904,1705387868971,-500.0,0.00022968,2]
[311783905,1705387868981,-500.0,0.00022968,2]
[311783906,1705387868990,-500.0,0.00022968,2]
[311783907,1705387869000,-500.0,0.00022968,2]
[311783908,1705387869010,-500.0,0.00022968,2]
[311783909,1705387869019,-500.0,0.00022968,2]
[311783910,1705387869032,-500.0,0.00022968,2]
[311783911,1705387869041,-500.0,0.00022968,2]
[311783912,1705387869051,-568.16,0.00022968,2]
[311783913,1705387869061,-500.0,0.00022968,2]
[311783914,1705387869070,-509.95,0.00022968,2]
[311783915,1705387869083,-500.0,0.00022968,2]
[311783916,1705387869093,-500.0,0.00022968,2]
[311783917,1705387869102,-653.65,0.00022968,2]
[311783918,1705387869111,-500.0,0.00022968,2]
[311783919,1705387869121,-500.0,0.00022968,2]
[311783920,1705387869131,-500.0,0.00022968,2]
[311783921,1705387869141,-500.0,0.00022968,2]
[311783922,1705387869151,-623.72,0.00022968,2]
[311783923,1705387869161,-500.0,0.00022968,2]
[311783924,1705387869170,-500.0,0.00022968,2]
[311783925,1705387869179,-509.73,0.00022968,2]
[311783926,1705387869188,-756.12,0.00022968,2]
[311783927,1705387869197,-500.0,0.00022968,2]
[311783928,1705387869206,-500.0,0.00022968,2]
[311783929,1705387869214,-500.0,0.00022968,2]
[311783930,1705387869223,-500.0,0.00022968,2]
[311783931,1705387869232,-500.0,0.00022968,2]
[311783932,1705387869241,-500.0,0.00022968,2]
[311783933,1705387869250,-500.0,0.00022968,2]
[311783934,1705387869259,-500.0,0.00022968,2]
[311783935,1705387869268,-538.79,0.00022968,2]
[311783936,1705387869277,-500.0,0.00022968,2]
[311783937,1705387869286,-500.0,0.00022968,2]
[311783938,1705387869295,-914.45,0.00022968,2]
[311783939,1705387869304,-500.0,0.00022968,2]
[311783940,1705387869313,-541.05,0.00022968,2]
[311783941,1705387869322,-714.48,0.00022968,2]
[311783942,1705387869331,-500.0,0.00022968,2]
[311783943,1705387869340,-500.0,0.00022968,2]
[311783944,1705387869349,-500.0,0.00022968,2]
[311783945,1705387869357,-500.0,0.00022968,2]
[311783946,1705387869366,-500.0,0.00022968,2]
[311783947,1705387869375,-568.71,0.00022968,2]
[311783948,1705387869384,-500.0,0.00022968,2]
[311783949,1705387869393,-500.0,0.00022968,2]
[311783950,1705387869402,-500.0,0.00022968,2]
[311783951,1705387869411,-500.0,0.00022968,2]
[311783952,1705387869421,-500.0,0.00022968,2]
[311783953,1705387869430,-500.0,0.00022968,2]
[311783954,1705387869439,-500.0,0.00022968,2]
[311783955,1705387869448,-283.54446675,0.00022968,2]
[311783956,1705387869458,-500.0,0.00022968,2]
[311783957,1705387869468,-264.86024757,0.00022968,2]
[311783958,1705387869478,-902.86,0.00022968,2]
[311783959,1705387869487,-500.0,0.00022968,2]
[311783960,1705387869497,-573.7,0.00022968,2]
[311783961,1705387869506,-157.11,0.00022977,2]
[311783962,1705387869515,-5833.1242842,0.00022984,2]
[311783963,1705387869524,-5020.9171054,0.00022984,2]
[311783964,1705387869534,-4208.7099266,0.00022984,2]
[311783965,1705387869544,-3396.5027478,0.00022984,2]
[311783966,1705387869554,-2953.548921,0.00022984,2]
[311783967,1705387869563,-2546.00133,0.00022984,2]
[311783968,1705387869573,-2138.453739,0.00022984,2]
[311783969,1705387869583,-1730.906148,0.00022984,2]
[311783970,1705387869593,-19277.2783069,0.00022984,2]
[311783971,1705387869603,-16668.9518025,0.00022984,2]
[311783972,1705387869613,-14060.6252982,0.00022984,2]
[311783973,1705387869622,-11452.2987939,0.00022984,2]
[311783974,1705387869632,-138146.3193333,0.00022984,2]
[311783975,1705387869641,-119454.3286666,0.00022984,2]
[311783976,1705387869651,-100762.3379999,0.00022984,2]
[311783977,1705387869661,-82070.3473333,0.00022984,2]
[311783978,1705387869671,-2882.5004756,0.00022984,2]
[311783979,1705387869680,-2496.15274,0.00022984,2]
[311783980,1705387869689,-2109.8050044,0.00022984,2]
[311783981,1705387869698,-1723.4572688,0.00022984,2]
[311783982,1705387869710,-100962.3254885,0.00022984,2]
[311783983,1705387869719,-87523.091587,0.00022984,2]
[311783984,1705387869728,-74083.8576855,0.00022984,2]
[311783985,1705387869739,-60644.623784,0.00022984,2]
[311783986,1705387869750,-151.0,0.00022984,7]
[311783987,1705387869760,-194.947721,0.00022984,7]
[311783988,1705387869775,-154.69,0.00022992,2]
[311783989,1705387869786,-150.01,0.00022999,2]
[311783990,1705387869796,-3295.05728793,0.00022999,2]
[311783991,1705387869822,-27533.12638396,0.00023,2]
[311783992,1705387870522,-100838.95693358,0.00023,2]
[311783993,1705387870539,-10314.83852437,0.00023,2]
[311783994,1705387870550,-119967.10665485,0.00023,2]
[311783995,1705387870568,-5950.82474578,0.00023,2]
[311783996,1705387870709,-500.0,0.00022143,2]
[311783997,1705387870740,-640.0,0.00022692,2]
[311783998,1705387870758,-20284.764,0.00023,2]
[311783999,1705387870969,500.0,0.00022099,2]
[311784000,1705387871069,500.0,0.00022099,2]
[311784001,1705387871646,500.0,0.00022099,2]
[311784002,1705387871723,500.0,0.00022099,2]
[311784003,1705387872654,150.0,0.00021873,2]
[311784004,1705387872690,-632.48134206,0.00022143,2]
[311784005,1705387872905,-1194.32865794,0.00022143,2]
[311784006,1705387872915,-818.57194933,0.00022143,2]
[311784007,1705387872929,-433.34805067,0.00022143,2]
[311784008,1705387872940,-540.77,0.00022143,2]
[311784009,1705387872952,-500.0,0.00022144,2]
[311784010,1705387872963,-226.23,0.00022373,2]
[311784011,1705387872973,-500.0,0.00022373,2]
[311784012,1705387872984,-500.0,0.00022417,2]
[311784013,1705387872995,-1826.81,0.00022417,2]
[311784014,1705387873005,-1251.92,0.00022417,2]
[311784015,1705387873016,-500.0,0.00022418,2]
[311784016,1705387873027,-7999.99,0.00022645,3]
[311784017,1705387873038,-442.0,0.00022647,2]
[311784018,1705387873049,-151.0,0.00022647,7]
[311784019,1705387873059,-26.07526011,0.00022691,2]
[311784020,1705387873071,-466.77785009,0.00022691,2]
[311784021,1705387873103,-1333.9568898,0.00022691,2]
[311784022,1705387873113,-500.0,0.00022691,2]
[311784023,1705387873123,-259.77148199,0.00022691,2]
[311784024,1705387873270,500.0,0.00022099,2]
[311784025,1705387873644,500.0,0.00022099,2]
[311784026,1705387873994,-500.0,0.00022144,2]
[311784027,1705387874004,-246.29,0.00022373,2]
[311784028,1705387874014,-480.14663959,0.00022691,2]
[311784029,1705387874044,500.0,0.00022099,2]
[311784030,1705387874058,-333.70314074,0.00022691,2]
[311784031,1705387874069,-178.29873768,0.00022691,2]
[311784032,1705387874081,-136.59424912,0.00022692,2]
[311784033,1705387874094,-363.40575088,0.00022692,2]
[311784034,1705387874104,-153.0,0.00022766,2]
[311784035,1705387874114,-153.0,0.00022766,2]
[311784036,1705387874123,-153.0,0.00022766,2]
[311784037,1705387874133,-153.0,0.00022766,2]
[311784038,1705387874142,-134.19196428,0.00022766,2]
[311784039,1705387874174,500.0,0.00022099,2]
[311784040,1705387874188,-18.80803572,0.00022766,2]
[311784041,1705387874198,-151.0,0.00022766,7]
[311784042,1705387874208,-250.0,0.00022847,2]
[311784043,1705387874218,-494.77259117,0.00022965,2]
[311784044,1705387874362,500.0,0.00022099,2]
[311784045,1705387874416,500.0,0.00022099,2]
[311784046,1705387875259,150.0,0.00022079,2]
[311784047,1705387875296,500.0,0.00022099,2]
[311784048,1705387875539,500.0,0.00022099,2]
[311784049,1705387875576,500.67638358,0.00022099,2]
[311784050,1705387875607,500.0,0.00022099,2]
[311784051,1705387875956,500.0,0.00022099,2]
[311784052,1705387876183,580.28,0.00022099,2]
[311784053,1705387876305,500.0,0.00022099,2]
[311784054,1705387876481,500.0,0.00022099,2]
[311784055,1705387876540,500.0,0.00022099,2]
[311784056,1705387876731,504.5788183,0.00022099,2]
[311784057,1705387876866,500.0,0.00022099,2]
[311784058,1705387877270,500.0,0.00022099,2]
[311784059,1705387877321,500.0,0.00022099,2]
[311784060,1705387877479,500.0,0.00022099,2]
[311784061,1705387877729,500.0,0.00022099,2]
[311784062,1705387877766,220.97958904,0.00022099,2]
[311784063,1705387877988,500.0,0.00022099,2]
[311784064,1705387878019,155.0,0.00022099,2]
[311784065,1705387878116,858.801596,0.00022099,2]
[311784066,1705387878154,500.0,0.00022099,2]
[311784067,1705387878629,500.0,0.00022099,2]
[311784068,1705387878730,500.0,0.00022099,2]
[311784069,1705387878847,500.0,0.00022099,5]
[311784070,1705387879019,500.0,0.00022099,2]
[311784071,1705387879109,19007.7685775,0.00022099,2]
[311784072,1705387879608,500.0,0.00022099,2]
[311784073,1705387879647,379.60409532,0.00022099,2]
[311784074,1705387879895,500.0,0.00022099,2]
[311784075,1705387879958,500.0,0.00022099,2]
[311784076,1705387880337,500.0,0.00022099,2]
[311784077,1705387880373,500.0,0.00022099,2]
[311784078,1705387881157,500.0,0.00022099,2]
[311784079,1705387881336,283.25543825,0.00022099,2]
[311784080,1705387881606,500.0,0.00022099,2]
[311784081,1705387882325,500.0,0.00022099,2]
[311784082,1705387882484,500.0,0.00022099,2]
[311784083,1705387882844,500.0,0.00022099,2]
[311784084,1705387883336,500.0,0.00022099,2]
[311784085,1705387883489,500.0,0.00022099,2]
[311784086,1705387883613,500.0,0.00022099,2]
[311784087,1705387883915,500.0,0.00022099,2]
[311784088,1705387884441,500.0,0.00022099,2]
[311784089,1705387884605,282.54184595,0.00022099,2]
[311784090,1705387884714,500.0,0.00022099,2]
[311784091,1705387884900,500.0,0.00022099,2]
[311784092,1705387884931,500.0,0.00022099,2]
[311784093,1705387885195,500.0,0.00022099,2]
[311784094,1705387885286,71661.5142,0.00022,2]
[311784095,1705387885555,8416.53,0.00022099,2]
[311784096,1705387885681,500.0,0.00022099,2]
[311784097,1705387885735,500.0,0.00022099,2]
[311784098,1705387886190,1463.57,0.00022099,2]
[311784099,1705387886565,500.0,0.00022099,2]
[311784100,1705387886594,500.0,0.00022099,2]
[311784101,1705387887435,500.0,0.00022099,2]
[311784102,1705387887465,500.0,0.00022099,2]
[311784103,1705387890474,500.0,0.00022099,2]
[311784104,1705387890634,210.47709599,0.00022099,2]
[311784105,1705387890666,718.09,0.00022099,2]
[311784106,1705387891699,210.8309,0.00022,2]
[311784107,1705387892124,2091.59,0.00022099,2]
[311784108,1705387892967,158.25,0.0002203,2]
[311784109,1705387893493,500.0,0.00022099,2]
[311784110,1705387893673,500.0,0.00022099,2]
[311784111,1705387897793,1789.17,0.00022099,2]
[311784112,1705387898211,239.9,0.00019895,2]
[311784113,1705387899935,500.0,0.00022099,2]
[311784114,1705387900022,500.0,0.00022099,2]
[311784115,1705387901114,500.0,0.00022099,2]
[311784116,1705387902368,916.6,0.00022099,2]
[311784117,1705387903324,500.0,0.00022099,2]
[311784118,1705387904186,5798.89,0.00022099,2]
[311784119,1705387905271,500.0,0.00022099,2]
[311784120,1705387906939,500.0,0.00022099,2]
[311784121,1705387907003,1161.88,0.00022099,2]
[311784122,1705387907302,500.0,0.00022099,2]
[311784123,1705387908032,500.0,0.00022099,2]
[311784124,1705387908236,500.0,0.00022099,2]
[311784125,1705387910681,500.0,0.00022099,2]
[311784126,1705387912883,500.0,0.00022099,2]
[311784127,1705387913608,310.29441094,0.00022099,2]
[311784128,1705387914876,1983.49,0.00022099,2]
[311784129,1705387915946,500.0,0.00022099,2]
[311784130,1705387917181,500.0,0.00022099,2]
[311784131,1705387918413,500.0,0.00022099,2]
[311784132,1705387918575,500.0,0.00022099,2]
[311784133,1705387919233,500.0,0.00022099,2]
[311784134,1705387919452,250.0,0.00022044,2]
[311784135,1705387920069,1045.89,0.00022099,2]
[311784136,1705387920119,1279.06469544,0.00022,2]
[311784137,1705387920430,500.0,0.00022099,2]
[311784138,1705387920694,500.0,0.00022099,2]
[311784139,1705387924633,500.0,0.00022099,2]
[311784140,1705387925805,1111.52,0.00022099,2]
[311784141,1705387926725,534.85879912,0.00022099,2]
[311784142,1705387927339,500.0,0.00022099,2]
[311784143,1705387929797,500.0,0.00022099,2]
[311784144,1705387929971,500.0,0.00022099,2]
[311784145,1705387930137,500.0,0.00022099,2]
[311784146,1705387930619,618.14,0.00022099,2]
[311784147,1705387932277,500.0,0.00022099,2]
[311784148,1705387935412,991.88,0.00022099,2]
[311784149,1705387935513,1281.82,0.00022099,2]
[311784150,1705387935941,500.0,0.00022099,2]
[311784151,1705387936947,500.0,0.00022099,2]
[311784152,1705387936995,500.0,0.00022099,2]
[311784153,1705387938454,500.0,0.00022099,2]